lending/lending_fUSD_20251125
["ID","MTS","AMOUNT","RATE_DAILY","PERIOD"]
[394871263,1764045046590,-1500.0,0.00018068,2]
[394871264,1764045046600,-769.62628102,0.00018068,2]
[394871265,1764045046609,-500.0,0.00018082,2]
[394871266,1764045046618,-1000.0,0.00018082,2]
[394871267,1764045046627,-1042.57,0.00018156,2]
[394871268,1764045046636,-528.6,0.00018218,2]
[394871269,1764045046645,-500.0,0.00018219,2]
[394871270,1764045046654,-325.79,0.00018246,2]
[394871271,1764045046665,-166.68,0.00018313,2]
[394871272,1764045046674,-641.72187038,0.00018356,2]
[394871274,1764045046683,-257.0,0.00018398,2]
[394871275,1764045046695,-271.0,0.00018422,2]
[394871276,1764045046704,-1042.62606144,0.0001843,2]
[394871278,1764045046713,-1466.759383,0.00018486,2]
[394871279,1764045046723,-570.8302492,0.00018486,2]
[394871280,1764045046733,-1000.0,0.00018499,2]
[394871281,1764045046742,-211.29,0.00018513,2]
[394871282,1764045046751,-911.82838175,0.00018521,2]
[394871283,1764045046760,-1002.45020383,0.00018521,2]
[394871284,1764045046770,-1004.90788599,0.00018521,2]
[394871285,1764045046779,-502.03916799,0.00018521,2]
[394871286,1764045046789,-1001.55832751,0.00018521,2]
[394871287,1764045046797,-1004.58919864,0.00018521,2]
[394871288,1764045046806,-1000.0,0.00018555,2]
[394871289,1764045046816,-2500.0,0.00018585,2]
[394871290,1764045046825,-1512.547964,0.00018616,2]
[394871291,1764045046838,-1600.0,0.00018731,2]
[394871292,1764045046847,-1000.0,0.0001876,2]
[394871293,1764045046856,-150.79,0.000188,2]
[394871294,1764045046866,-150.79,0.000188,2]
[394871295,1764045046876,-150.79,0.000188,2]
[394871296,1764045046886,-180.98986024,0.00018926,2]
[394871297,1764045046895,-1142.28277104,0.00019,2]
[394871298,1764045046904,-15395.93436043,0.00019,2]
[394871299,1764045046913,-330.67760514,0.00019,2]
[394871300,1764045046923,-300.0,0.00019,2]
[394871301,1764045046932,-1284.0,0.00019038,2]
[394871302,1764045046942,-599.60298507,0.00019046,2]
[394871303,1764045046951,-1000.0,0.00019047,2]
[394871304,1764045046960,-2005.39280511,0.00019133,2]
[394871305,1764045046970,-889.66620373,0.00019161,2]
[394871306,1764045046979,-500.0,0.00019178,2]
[394871307,1764045046988,-500.0,0.00019178,2]
[394871308,1764045046998,-188.672891,0.00019178,2]
[394871309,1764045047009,-299.43783078,0.00019178,2]
[394871310,1764045047018,-151.0,0.00019178,2]
[394871311,1764045047028,-156.31113,0.00019178,2]
[394871312,1764045047037,-151.0,0.00019178,2]
[394871313,1764045047047,-151.0,0.00019178,2]
[394871314,1764045047057,-151.0,0.00019178,2]
[394871315,1764045047067,-151.0,0.00019178,2]
[394871316,1764045047076,-151.0,0.00019178,2]
[394871317,1764045047086,-151.0,0.00019178,2]
[394871318,1764045047095,-151.0,0.00019178,2]
[394871319,1764045047106,-153.698801,0.00019178,2]
[394871320,1764045047119,-200.0,0.00019178,2]
[394871321,1764045047128,-969.0,0.000193,2]
[394871322,1764045047138,-211.29,0.00019354,2]
[394871323,1764045047150,-1605.79,0.00019395,2]
[394871324,1764045047159,-823.0,0.00019395,2]
[394871325,1764045047169,-1266.038,0.00019395,2]
[394871326,1764045047179,-660.0,0.00019395,2]
[394871327,1764045047190,-908.0,0.00019395,2]
[394871328,1764045047199,-1222.003,0.00019395,2]
[394871329,1764045047209,-618.565,0.00019395,2]
[394871330,1764045047219,-160.435,0.00019395,2]
[394871331,1764045047228,-3454.772,0.00019395,2]
[394871332,1764045047238,-1335.961,0.00019395,2]
[394871333,1764045047247,-1000.0,0.00019438,2]
[394871334,1764045047257,-1000.0,0.00019595,2]
[394871335,1764045047267,-528.6,0.00019618,2]
[394871336,1764045047275,-325.79,0.00019623,2]
[394871337,1764045047285,-400.0,0.00019863,2]
[394871338,1764045047294,-151.0,0.000199,2]
[394871339,1764045047303,-500.0,0.00019999,2]
[394871340,1764045047313,-224.71383699,0.00019999,2]
[394871341,1764045047322,-242.50269504,0.00019999,2]
[394871342,1764045047332,-531.83746563,0.00019999,2]
[394871343,1764045047342,-9197.11604728,0.0002,2]
[394871344,1764045047494,-2928.0,0.0002,7]
[394871345,1764045047503,-466.13131173,0.0002,5]
[394871346,1764045047514,-5706.9577076,0.0002,5]
[394871347,1764045047523,-151.0,0.0002,2]
[394871348,1764045047533,-151.0,0.0002,2]
[394871349,1764045047543,-151.0,0.0002,2]
[394871350,1764045047552,-185.35,0.0002,2]
[394871351,1764045047561,-1084.88458621,0.00020054,2]
[394871352,1764045047570,-1000.0,0.00020116,2]
[394871353,1764045047580,-1000.0,0.00020143,2]
[394871354,1764045047588,-661.94,0.00020187,2]
[394871355,1764045047598,-211.29,0.00020196,2]
[394871356,1764045047607,-151.0,0.00020269,2]
[394871357,1764045047617,-262.345366,0.00020269,2]
[394871358,1764045047627,-262.345366,0.00020269,2]
[394871359,1764045047637,-262.345366,0.00020269,2]
[394871360,1764045047648,-262.345373,0.00020269,2]
[394871361,1764045047657,-1000.0,0.0002041,2]
[394871362,1764045047666,-911.0,0.000205,2]
[394871363,1764045047676,-838.0,0.000205,2]
[394871364,1764045047685,-347.0,0.000205,2]
[394871365,1764045047695,-184.650921,0.00020548,2]
[394871366,1764045047704,-184.650921,0.00020548,2]
[394871367,1764045047714,-184.650921,0.00020548,2]
[394871368,1764045047723,-184.650921,0.00020548,2]
[394871369,1764045047732,-184.650921,0.00020548,2]
[394871370,1764045047741,-184.650921,0.00020548,2]
[394871371,1764045047751,-184.650921,0.00020548,2]
[394871372,1764045047761,-184.650921,0.00020548,2]
[394871373,1764045047771,-184.650921,0.00020548,2]
[394871374,1764045047780,-184.650921,0.00020548,2]
[394871375,1764045047790,-184.650921,0.00020548,2]
[394871376,1764045047799,-184.650921,0.00020548,2]
[394871377,1764045047808,-184.650921,0.00020548,2]
[394871378,1764045047817,-184.650921,0.00020548,2]
[394871379,1764045047826,-184.650921,0.00020548,2]
[394871380,1764045047835,-184.650921,0.00020548,2]
[394871381,1764045047844,-184.650921,0.00020548,2]
[394871382,1764045047854,-184.650921,0.00020548,2]
[394871383,1764045047864,-184.650921,0.00020548,2]
[394871384,1764045047874,-184.650917,0.00020548,2]
[394871385,1764045047883,-151.0,0.00020548,2]
[394871386,1764045047892,-151.0,0.00020548,2]
[394871387,1764045047902,-151.0,0.00020548,2]
[394871388,1764045047911,-151.0,0.00020548,2]
[394871389,1764045047920,-151.0,0.00020548,2]
[394871390,1764045047930,-280.496118,0.00020548,2]
[394871391,1764045047939,-190.67,0.00020548,2]
[394871392,1764045047948,-600.0,0.00020548,2]
[394871393,1764045047958,-1616.032888,0.00020548,2]
[394871394,1764045047967,-1616.032888,0.00020548,2]
[394871395,1764045047976,-1616.032888,0.00020548,2]
[394871396,1764045047986,-1616.032885,0.00020548,2]
[394871397,1764045047996,-8404.48161294,0.0002057,2]
[394871398,1764045048006,-1600.0,0.00020604,2]
[394871399,1764045048018,-9506.90192051,0.00020641,2]
[394871400,1764045048028,-152.0,0.00020667,2]
[394871401,1764045048038,-464.80110398,0.00020667,2]
[394871402,1764045048048,-150.79,0.0002069,2]
[394871403,1764045048058,-1000.0,0.00020691,2]
[394871404,1764045048068,-2000.0,0.000207,2]
[394871405,1764045048077,-1000.0,0.00020795,2]
[394871406,1764045048087,-3562.5,0.00020822,2]
[394871407,1764045048102,-300.0,0.00020924,2]
[394871408,1764045048115,-300.0,0.00020961,2]
[394871409,1764045048124,-500.0,0.00021,7]
[394871410,1764045048133,-500.0,0.00021,7]
[394871411,1764045048143,-500.0,0.00021,7]
[394871412,1764045048154,-500.0,0.00021,7]
[394871413,1764045048164,-500.0,0.00021,7]
[394871414,1764045048173,-500.0,0.00021,7]
[394871415,1764045048183,-500.0,0.00021,7]
[394871416,1764045048193,-500.0,0.00021,7]
[394871417,1764045048202,-500.0,0.00021,7]
[394871418,1764045048211,-500.0,0.00021,7]
[394871419,1764045048220,-500.0,0.00021,7]
[394871420,1764045048230,-500.0,0.00021,7]
[394871421,1764045048240,-500.0,0.00021,7]
[394871422,1764045048249,-500.0,0.00021,7]
[394871423,1764045048259,-500.0,0.00021,7]
[394871424,1764045048269,-500.0,0.00021,7]
[394871425,1764045048279,-500.0,0.00021,7]
[394871427,1764045048288,-500.0,0.00021,7]
[394871428,1764045048299,-500.0,0.00021,7]
[394871430,1764045048309,-500.0,0.00021,7]
[394871431,1764045048322,-265.23,0.00021,7]
[394871432,1764045048332,-536.64,0.00021,7]
[394871433,1764045048341,-350.0,0.00021,2]
[394871434,1764045048350,-300.0,0.00021019,2]
[394871435,1764045048360,-300.0,0.00021024,2]
[394871436,1764045048369,-211.29,0.00021037,2]
[394871437,1764045048378,-181.0,0.00021062,2]
[394871438,1764045048387,-1211.90293586,0.00021065,2]
[394871439,1764045048397,-234.93,0.00021084,2]
[394871440,1764045048408,-300.0,0.00021094,2]
[394871441,1764045048418,-300.0,0.00021118,2]
[394871442,1764045048427,-181.0,0.00021123,2]
[394871443,1764045048437,-300.0,0.00021141,2]
[394871444,1764045048446,-234.93,0.0002115,2]
[394871445,1764045048455,-1000.0,0.00021165,2]
[394871446,1764045048464,-300.0,0.00021167,2]
[394871447,1764045048473,-300.0,0.00021175,2]
[394871448,1764045048483,-300.0,0.00021178,2]
[394871449,1764045048492,-300.0,0.00021195,2]
[394871450,1764045048501,-300.0,0.00021195,2]
[394871451,1764045048512,-300.0,0.00021213,2]
[394871452,1764045048523,-234.93,0.00021216,2]
[394871453,1764045048532,-300.0,0.00021216,2]
[394871454,1764045048541,-300.0,0.00021221,2]
[394871455,1764045048552,-300.0,0.00021222,2]
[394871456,1764045048561,-800.0,0.00021233,2]
[394871457,1764045048570,-300.0,0.00021249,2]
[394871458,1764045048579,-300.0,0.00021252,2]
[394871459,1764045048588,-300.0,0.00021254,2]
[394871460,1764045048598,-300.0,0.0002127,2]
[394871461,1764045048607,-300.0,0.00021273,2]
[394871462,1764045048616,-300.0,0.00021279,2]
[394871463,1764045048625,-300.0,0.00021289,2]
[394871464,1764045048634,-300.0,0.00021295,2]
[394871465,1764045048643,-4999.0,0.000213,5]
[394871466,1764045048652,-300.0,0.00021305,2]
[394871467,1764045048661,-300.0,0.00021334,2]
[394871468,1764045048670,-300.0,0.00021338,2]
[394871469,1764045048679,-300.0,0.00021349,2]
[394871470,1764045048688,-300.0,0.00021361,2]
[394871471,1764045048697,-300.0,0.00021363,2]
[394871472,1764045048706,-300.0,0.00021376,2]
[394871473,1764045048715,-300.0,0.0002139,2]
[394871474,1764045048725,-300.0,0.0002139,2]
[394871475,1764045048734,-300.0,0.00021392,2]
[394871476,1764045048743,-300.0,0.000214,2]
[394871477,1764045048752,-300.0,0.00021418,2]
[394871478,1764045048761,-300.0,0.00021426,2]
[394871479,1764045048770,-300.0,0.00021426,2]
[394871480,1764045048779,-300.0,0.00021431,2]
[394871481,1764045048788,-300.0,0.00021436,2]
[394871482,1764045048797,-300.0,0.00021437,2]
[394871483,1764045048806,-300.0,0.00021449,2]
[394871484,1764045048814,-300.0,0.00021462,2]
[394871485,1764045048824,-300.0,0.00021463,2]
[394871486,1764045048833,-300.0,0.00021467,2]
[394871487,1764045048843,-300.0,0.00021475,2]
[394871488,1764045048858,-300.0,0.00021479,2]
[394871489,1764045048867,-300.0,0.00021493,2]
[394871490,1764045048876,-300.0,0.00021497,2]
[394871491,1764045048885,-300.0,0.00021512,2]
[394871492,1764045048895,-300.0,0.0002152,2]
[394871493,1764045048904,-300.0,0.00021539,2]
[394871494,1764045048913,-300.0,0.00021543,2]
[394871495,1764045048923,-300.0,0.00021544,2]
[394871496,1764045048932,-300.0,0.00021556,2]
[394871497,1764045048941,-1085.37758797,0.0002156,5]
[394871498,1764045048950,-1032.98920324,0.0002156,5]
[394871499,1764045048959,-1001.06961276,0.0002156,5]
[394871500,1764045048969,-1049.82414955,0.0002156,5]
[394871501,1764045048978,-1109.60017121,0.0002156,5]
[394871502,1764045048988,-1131.01673551,0.0002156,5]
[394871503,1764045048997,-1049.01060566,0.0002156,5]
[394871504,1764045049006,-1039.57136419,0.0002156,5]
[394871505,1764045049016,-1042.61168119,0.0002156,5]
[394871506,1764045049025,-1092.19271303,0.0002156,5]
[394871507,1764045049034,-1134.26596309,0.0002156,5]
[394871508,1764045049043,-1005.7312607,0.0002156,5]
[394871509,1764045049052,-1030.32717018,0.0002156,5]
[394871510,1764045049062,-1044.9862543,0.0002156,5]
[394871511,1764045049071,-1000.0177693,0.0002156,5]
[394871512,1764045049080,-1016.6827188,0.0002156,5]
[394871513,1764045049090,-1111.16305395,0.0002156,5]
[394871514,1764045049099,-1503.71032157,0.0002156,5]
[394871515,1764045049109,-300.0,0.00021561,2]
[394871516,1764045049120,-300.0,0.00021568,2]
[394871517,1764045049130,-300.0,0.00021595,2]
[394871518,1764045049139,-300.0,0.00021597,2]
[394871519,1764045049148,-300.0,0.00021621,2]
[394871520,1764045049158,-300.0,0.0002163,2]
[394871521,1764045049167,-300.0,0.0002164,2]
[394871522,1764045049177,-300.0,0.00021667,2]
[394871523,1764045049187,-300.0,0.00021672,2]
[394871524,1764045049199,-300.0,0.00021712,2]
[394871525,1764045049209,-300.0,0.0002173,2]
[394871526,1764045049219,-300.0,0.00021739,2]
[394871527,1764045049228,-300.0,0.00021745,2]
[394871528,1764045049237,-300.0,0.00021749,2]
[394871529,1764045049248,-300.0,0.00021749,2]
[394871530,1764045049259,-300.0,0.00021751,2]
[394871531,1764045049268,-300.0,0.00021765,2]
[394871532,1764045049277,-300.0,0.00021769,2]
[394871533,1764045049287,-300.0,0.00021771,2]
[394871534,1764045049298,-300.0,0.00021771,2]
[394871535,1764045049307,-300.0,0.00021774,2]
[394871536,1764045049316,-621.78829552,0.00021785,2]
[394871537,1764045049326,-300.0,0.00021786,2]
[394871538,1764045049335,-300.0,0.00021788,2]
[394871539,1764045049344,-300.0,0.000218,2]
[394871540,1764045049353,-300.0,0.00021806,2]
[394871541,1764045049363,-300.0,0.00021821,2]
[394871542,1764045049372,-300.0,0.00021825,2]
[394871543,1764045049382,-300.0,0.00021828,2]
[394871544,1764045049391,-300.0,0.0002183,2]
[394871545,1764045049400,-300.0,0.00021836,2]
[394871546,1764045049409,-300.0,0.00021837,2]
[394871547,1764045049419,-300.0,0.00021847,2]
[394871548,1764045049429,-300.0,0.00021849,2]
[394871549,1764045049438,-300.0,0.00021857,2]
[394871550,1764045049449,-300.0,0.00021869,2]
[394871551,1764045049458,-300.0,0.00021875,2]
[394871552,1764045049468,-211.29,0.00021879,2]
[394871553,1764045049477,-300.0,0.00021884,2]
[394871554,1764045049487,-300.0,0.00021894,2]
[394871555,1764045049496,-300.0,0.00021908,2]
[394871556,1764045049505,-5000.0,0.00021918,2]
[394871557,1764045049514,-151.539737,0.00021918,2]
[394871558,1764045049524,-1007.66464866,0.00021918,2]
[394871559,1764045049533,-361.9542374,0.00021918,2]
[394871560,1764045049543,-437.45863632,0.00021918,2]
[394871561,1764045049554,-202.32923032,0.00021918,2]
[394871562,1764045049563,-500.0,0.00021918,2]
[394871563,1764045049577,-561.9440456,0.00021918,2]
[394871564,1764045049588,-500.0,0.00021918,2]
[394871565,1764045049598,-500.0,0.00021918,2]
[394871566,1764045049607,-500.0,0.00021918,2]
[394871567,1764045049616,-300.0,0.0002193,2]
[394871568,1764045049625,-300.0,0.0002193,2]
[394871569,1764045049635,-300.0,0.00021943,2]
[394871570,1764045049644,-300.0,0.00021962,2]
[394871571,1764045049653,-300.0,0.00021971,2]
[394871572,1764045049663,-300.0,0.00021993,2]
[394871573,1764045049672,-687.07620087,0.00021999,2]
[394871574,1764045049682,-4151.9553585,0.00022,2]
[394871575,1764045049691,-13873.99991398,0.00022,4]
[394871576,1764045049700,-4168.98958351,0.00022,7]
[394871577,1764045049710,-24107.7182588,0.00022,2]
[394871578,1764045049719,-427.01065334,0.00022,7]
[394871579,1764045049729,-4627.56,0.00022,7]
[394871580,1764045049738,-161.0,0.00022,2]
[394871581,1764045049747,-167.0,0.00022,2]
[394871582,1764045049756,-182.4410324,0.00022,30]
[394871583,1764045049766,-250.0,0.00022011,2]
[394871584,1764045049775,-200.0,0.00022011,2]
[394871585,1764045049783,-210.0,0.00022011,2]
[394871586,1764045049792,-150.0,0.00022011,2]
[394871587,1764045049801,-200.0,0.00022011,2]
[394871588,1764045049810,-209.336,0.00022011,2]
[394871589,1764045049819,-250.0,0.00022011,2]
[394871590,1764045049828,-219.525,0.00022011,2]
[394871591,1764045049841,-154.233,0.00022011,2]
[394871592,1764045049850,-150.0,0.00022012,2]
[394871593,1764045049859,-150.0,0.00022012,2]
[394871594,1764045049867,-150.323,0.00022012,2]
[394871595,1764045049877,-328.03618805,0.00022129,2]
[394871596,1764045049886,-427.01065334,0.00022176,2]
[394871597,1764045049895,-1000.0,0.00022265,2]
[394871598,1764045049904,-1602.0,0.00022395,2]
[394871599,1764045049913,-823.0,0.00022395,2]
[394871600,1764045049922,-1257.0,0.00022395,2]
[394871601,1764045049931,-660.0,0.00022395,2]
[394871602,1764045049940,-908.0,0.00022395,2]
[394871603,1764045049950,-1192.0,0.00022395,2]
[394871604,1764045049959,-609.0,0.00022395,2]
[394871605,1764045049968,-3438.0,0.00022395,2]
[394871606,1764045049977,-1320.0,0.00022395,2]
[394871607,1764045049986,-1600.0,0.00022477,2]
[394871608,1764045049996,-29999.99,0.00022562,2]
[394871609,1764045050006,-9999.99,0.00022562,2]
[394871610,1764045050016,-211.29,0.0002272,2]
[394871611,1764045050026,-889.66620373,0.0002295,2]
[394871612,1764045050034,-8404.48161294,0.00023175,2]
[394871613,1764045050044,-51803.3824155,0.000232,2]
[394871614,1764045050053,-9506.90192051,0.00023275,2]
[394871615,1764045050062,-500.0,0.00023288,2]
[394871616,1764045050071,-500.0,0.00023288,2]
[394871617,1764045050080,-500.0,0.00023288,2]
[394871618,1764045050089,-500.0,0.00023288,2]
[394871619,1764045050098,-500.0,0.00023288,2]
[394871620,1764045050108,-500.0,0.00023288,2]
[394871621,1764045050117,-500.0,0.00023288,2]
[394871622,1764045050127,-500.0,0.00023288,2]
[394871623,1764045050136,-500.0,0.00023288,2]
[394871624,1764045050146,-241.19397436,0.00023288,2]
[394871625,1764045050157,-4627.56,0.000244,7]
[394871626,1764045050170,-2000.0,0.000244,2]
[394871627,1764045050181,-644.79446246,0.00024524,2]
[394871628,1764045050191,-237.9379197,0.00024558,2]
[394871629,1764045050200,-153.0,0.00024658,2]
[394871630,1764045050210,-196.19,0.00024658,2]
[394871631,1764045050220,-1000.0,0.00024658,3]
[394871632,1764045050229,-1000.0,0.00024658,3]
[394871633,1764045050238,-1000.0,0.00024658,3]
[394871634,1764045050247,-1000.0,0.00024658,3]
[394871635,1764045050257,-1000.0,0.00024658,3]
[394871636,1764045050267,-1000.0,0.00024658,3]
[394871637,1764045050276,-1000.0,0.00024658,3]
[394871638,1764045050285,-1035.0,0.00024658,3]
[394871639,1764045050295,-151.0,0.00024658,7]
[394871640,1764045050304,-151.0,0.00024658,7]
[394871641,1764045050313,-151.0,0.00024658,7]
[394871642,1764045050322,-155.257397,0.00024658,7]
[394871643,1764045050331,-151.927414,0.00024658,7]
[394871644,1764045050341,-209.191499,0.00024658,7]
[394871645,1764045050350,-151.0,0.00024658,7]
[394871646,1764045050361,-151.0,0.00024658,7]
[394871647,1764045050372,-155.803695,0.00024658,7]
[394871648,1764045050381,-151.0,0.00024658,7]
[394871649,1764045050392,-151.0,0.00024658,7]
[394871650,1764045050403,-151.0,0.00024658,7]
[394871651,1764045050412,-156.852732,0.00024658,7]
[394871652,1764045050423,-151.0,0.00024658,7]
[394871653,1764045050433,-151.0,0.00024658,7]
[394871654,1764045050443,-151.0,0.00024658,7]
[394871655,1764045050452,-151.0,0.00024658,7]
[394871656,1764045050463,-156.874998,0.00024658,7]
[394871657,1764045050475,-151.0,0.00024658,7]
[394871658,1764045050485,-151.0,0.00024658,7]
[394871659,1764045050496,-151.0,0.00024658,7]
[394871660,1764045050506,-151.0,0.00024658,7]
[394871661,1764045050517,-151.0,0.00024658,7]
[394871662,1764045050527,-151.0,0.00024658,7]
[394871663,1764045050647,-151.0,0.00024658,7]
[394871664,1764045050670,-151.0,0.00024658,7]
[394871665,1764045050680,-151.0,0.00024658,7]
[394871666,1764045050689,-178.786716,0.00024658,7]
[394871667,1764045050698,-151.000009,0.00024658,7]
[394871668,1764045050708,-151.0,0.00024658,7]
[394871669,1764045050718,-207.924161,0.00024658,7]
[394871670,1764045050727,-152.187323,0.00024658,7]
[394871671,1764045050736,-151.0,0.00024658,7]
[394871672,1764045050745,-153.596107,0.00024658,7]
[394871673,1764045050754,-152.349101,0.00024658,7]
[394871674,1764045050763,-151.0,0.00024658,7]
[394871675,1764045050772,-151.0,0.00024658,7]
[394871676,1764045050781,-292.571921,0.00024658,7]
[394871677,1764045050790,-151.0,0.00024658,7]
[394871678,1764045050799,-151.0,0.00024658,7]
[394871679,1764045050808,-151.0,0.00024658,7]
[394871680,1764045050817,-151.0,0.00024658,7]
[394871681,1764045050827,-158.777098,0.00024658,7]
[394871682,1764045050836,-151.0,0.00024658,7]
[394871683,1764045050846,-151.0,0.00024658,7]
[394871684,1764045050855,-151.0,0.00024658,7]
[394871685,1764045050866,-151.0,0.00024658,7]
[394871686,1764045050876,-151.0,0.00024658,7]
[394871687,1764045050886,-151.0,0.00024658,7]
[394871688,1764045050897,-151.0,0.00024658,7]
[394871689,1764045050907,-224.433439,0.00024658,7]
[394871690,1764045050919,-151.0,0.00024658,7]
[394871691,1764045050929,-163.241825,0.00024658,7]
[394871692,1764045050938,-151.0,0.00024658,7]
[394871693,1764045050947,-151.0,0.00024658,7]
[394871694,1764045050956,-151.0,0.00024658,7]
[394871695,1764045050965,-151.0,0.00024658,7]
[394871696,1764045050974,-151.0,0.00024658,7]
[394871697,1764045050983,-151.0,0.00024658,7]
[394871698,1764045050993,-151.0,0.00024658,7]
[394871699,1764045051003,-151.0,0.00024658,7]
[394871700,1764045051012,-151.0,0.00024658,7]
[394871701,1764045051022,-164.913748,0.00024658,7]
[394871702,1764045051032,-167.447988,0.00024658,7]
[394871703,1764045051042,-151.0,0.00024658,7]
[394871704,1764045051052,-151.0,0.00024658,7]
[394871705,1764045051062,-1000.0,0.00024658,2]
[394871706,1764045051071,-151.0,0.00024658,7]
[394871707,1764045051081,-153.716134,0.00024658,7]
[394871708,1764045051091,-151.0,0.00024658,7]
[394871709,1764045051101,-151.0,0.00024658,7]
[394871710,1764045051113,-173.100682,0.00024658,7]
[394871711,1764045051124,-152.787296,0.00024658,7]
[394871712,1764045051133,-151.0,0.00024658,7]
[394871713,1764045051143,-151.0,0.00024658,7]
[394871714,1764045051152,-151.0,0.00024658,7]
[394871715,1764045051162,-166.396803,0.00024658,7]
[394871716,1764045051171,-151.761718,0.00024658,7]
[394871717,1764045051180,-151.0,0.00024658,7]
[394871718,1764045051191,-151.0,0.00024658,7]
[394871719,1764045051201,-151.0,0.00024658,7]
[394871720,1764045051210,-151.0,0.00024658,7]
[394871721,1764045051219,-151.0,0.00024658,7]
[394871722,1764045051228,-151.0,0.00024658,7]
[394871723,1764045051238,-151.0,0.00024658,7]
[394871724,1764045051247,-151.0,0.00024658,7]
[394871725,1764045051258,-151.0,0.00024658,7]
[394871726,1764045051269,-151.0,0.00024658,7]
[394871727,1764045051279,-151.0,0.00024658,7]
[394871728,1764045051288,-151.0,0.00024658,7]
[394871729,1764045051297,-151.0,0.00024658,7]
[394871730,1764045051308,-151.0,0.00024658,7]
[394871731,1764045051318,-151.0,0.00024658,7]
[394871732,1764045051328,-181.845523,0.00024658,7]
[394871733,1764045051337,-151.0,0.00024658,7]
[394871734,1764045051346,-151.0,0.00024658,7]
[394871735,1764045051355,-157.695627,0.00024658,7]
[394871736,1764045051369,-151.0,0.00024658,7]
[394871737,1764045051378,-151.0,0.00024658,7]
[394871738,1764045051387,-151.0,0.00024658,7]
[394871739,1764045051397,-151.0,0.00024658,7]
[394871740,1764045051407,-151.0,0.00024658,7]
[394871741,1764045051417,-151.0,0.00024658,7]
[394871742,1764045051427,-281.615497,0.00024658,7]
[394871743,1764045051436,-158.666203,0.00024658,7]
[394871744,1764045051446,-151.0,0.00024658,7]
[394871745,1764045051456,-151.0,0.00024658,7]
[394871746,1764045051465,-151.0,0.00024658,7]
[394871747,1764045051475,-151.0,0.00024658,7]
[394871748,1764045051485,-151.0,0.00024658,7]
[394871749,1764045051495,-204.334497,0.00024658,7]
[394871750,1764045051504,-151.0,0.00024658,7]
[394871751,1764045051515,-157.526447,0.00024658,7]
[394871752,1764045051523,-151.0,0.00024658,7]
[394871753,1764045051532,-157.114875,0.00024658,7]
[394871754,1764045051541,-156.166142,0.00024658,7]
[394871755,1764045051550,-151.0,0.00024658,7]
[394871756,1764045051559,-151.0,0.00024658,7]
[394871757,1764045051568,-151.0,0.00024658,7]
[394871758,1764045051578,-157.268545,0.00024658,7]
[394871759,1764045051587,-151.0,0.00024658,7]
[394871760,1764045051596,-151.0,0.00024658,7]
[394871761,1764045051606,-247.310124,0.00024658,7]
[394871763,1764045051615,-151.0,0.00024658,7]
[394871764,1764045051624,-151.0,0.00024658,7]
[394871765,1764045051634,-151.0,0.00024658,7]
[394871766,1764045051645,-151.0,0.00024658,7]
[394871767,1764045051654,-151.0,0.00024658,7]